bitfinex-derivatives/quotes_ETHF0:USTF0_20250331
["timestamp","ask_amount","ask_price","bid_price","bid_amount"]
[1743449765755,1.08905,1836.6,1836.5,1.4671]
[1743449765947,1.08911,1836.5,1836.4,0.0081606]
[1743449766147,2.56971,1836.5,1836.4,5.1012606]
[1743449767250,3.29541,1836.5,1836.4,3.6341606]
[1743449767451,3.29541,1836.5,1836.0,2.1534]
[1743449767452,1.08935,1836.1,1836.0,2.1534]
[1743449767653,1.08935,1836.1,1836.0,5.7804]
[1743449769852,1.08935,1836.1,1836.0,2.1534]
[1743449770059,1.08935,1836.1,1836.0,5.7764]
[1743449770356,4.29715,1836.1,1836.0,1.469]
[1743449770554,1.08941,1836.0,1835.9,3.6260006]
[1743449770857,1.08964,1835.6,1835.5,0.6967]
[1743449771045,1.08964,1835.6,1835.5,4.3237]
[1743449772258,1.08964,1835.6,1835.5,5.6839]
[1743449772756,1.08964,1835.6,1835.5,4.9872]
[1743449772947,2.46434,1835.6,1835.5,3.626]
[1743449773346,1.0897,1835.5,1835.4,1.3902606]
[1743449773551,2.4644,1835.5,1835.4,5.0172606]
[1743449773750,2.4644,1835.5,1835.4,3.6351606]
[1743449774251,2.4644,1835.5,1835.4,5.0172606]
[1743449774456,2.4644,1835.5,1835.4,3.6351606]
[1743449774951,5.6722,1835.5,1835.4,2.4654806]
[1743449775356,1.08994,1835.1,1835.0,1.3821]
[1743449775551,1.08994,1835.1,1835.0,5.0101]
[1743449778056,1.4635606,1835.2,1835.0,5.0101]
[1743449778252,1.08994,1835.1,1835.0,5.0101]
[1743449778857,1.0980906,1835.2,1835.0,5.0101]
[1743449779061,1.0980806,1835.2,1835.0,5.0101]
[1743449779262,1.0980806,1835.2,1835.1,0.7485]
[1743449779861,1.0980806,1835.2,1835.1,2.8758]
[1743449780056,1.0980806,1835.2,1835.1,6.0836]
[1743449780661,0.0081606,1835.2,1835.1,6.0836]
[1743449780862,1.0980406,1835.2,1835.1,6.0836]
[1743449781453,0.0081606,1835.2,1835.1,7.17354]
[1743449781764,6.66408,1835.7,1835.3,1.08979]
[1743449782064,1.08976,1835.4,1835.3,1.08979]
[1743449782256,1.08976,1835.4,1835.3,3.628]
[1743449782964,1.08976,1835.4,1835.3,6.8358]
[1743449784157,1.08976,1835.4,1835.3,3.2078]
[1743449784354,1.08976,1835.4,1835.3,3.625]
[1743449785259,1.08982,1835.3,1835.2,3.2159606]
[1743449785461,1.08982,1835.3,1835.2,0.0081606]
[1743449785660,5.73192,1835.3,1835.2,0.0081606]
[1743449786063,2.52412,1835.3,1835.2,0.0081606]
[1743449786760,4.01762,1835.3,1835.2,0.0081606]
[1743449792969,4.01762,1835.3,1835.2,6e-07]
[1743449795773,3.29952,1835.3,1835.2,6e-07]
[1743449798278,4.04622,1835.3,1835.2,6e-07]
[1743449799369,1.08982,1835.3,1835.2,1.4803006]
[1743449799573,1.08982,1835.3,1835.2,2.8734006]
[1743449800178,2.51982,1835.3,1835.2,1.4803006]
[1743449800482,2.51982,1835.3,1835.2,6e-07]
[1743449800676,3.26652,1835.3,1835.2,6e-07]
[1743449801275,3.26652,1835.3,1835.2,1.4002006]
[1743449801678,3.26652,1835.3,1835.2,6e-07]
[1743449803882,5.45017,1835.0,1834.5,3.623]
[1743449804075,1.09006,1834.9,1834.8,1.4582]
[1743449804580,1.09006,1834.9,1834.8,2.1657]
[1743449804778,1.09006,1834.9,1834.8,5.7887]
[1743449805081,2.54696,1834.9,1834.8,5.7887]
[1743449805281,1.09006,1834.9,1834.8,5.7887]
[1743449808483,1.09006,1834.9,1834.8,1.4582]
[1743449808982,1.09006,1834.9,1834.3,3.9135]
[1743449808983,1.09036,1834.4,1834.3,3.9135]
[1743449809277,1.09036,1834.4,1834.3,7.5375]
[1743449810777,1.09036,1834.4,1834.3,8.9678]
[1743449811474,1.09036,1834.4,1834.3,10.05822]
[1743449811674,1.09036,1834.4,1834.3,5.3438]
[1743449811874,1.09036,1834.4,1834.3,8.9678]
[1743449816781,1.09036,1834.4,1834.3,10.05822]
[1743449816990,1.09036,1834.4,1834.3,8.9678]
[1743449818788,1.09036,1834.4,1834.3,10.05822]
[1743449819692,1.09036,1834.4,1834.3,8.9678]
[1743449821594,1.09036,1834.4,1834.3,5.76]
[1743449822192,1.09036,1834.4,1834.0,4.29836]
[1743449822193,2.72593,1834.4,1834.0,3.2078]
[1743449822396,1.09059,1834.0,1833.9,1.4653]
[1743449822694,1.09058,1834.1,1833.9,4.65828354]
[1743449822889,1.09054,1834.1,1834.0,4.71456]
[1743449823091,4.2366406,1834.5,1834.0,3.624]
[1743449823291,1.09051,1834.2,1834.1,0.7339]
[1743449824189,1.09048,1834.2,1834.1,3.9417]
[1743449824998,5.4598706,1834.5,1834.1,6.4417]
[1743449825299,1.09042,1834.3,1834.2,0.6895]
[1743449825687,1.09042,1834.3,1834.2,2.151]
[1743449826687,2.52472,1834.3,1834.2,2.151]
[1743449827092,1.09042,1834.3,1834.2,2.151]
[1743449829897,0.0081606,1834.5,1834.2,5.3588]
[1743449830089,1.09036,1834.4,1834.3,5.0277]
[1743449832498,1.3923606,1834.5,1834.2,3.2078]
[1743449832702,1.09048,1834.2,1834.1,1.4037]
[1743449833105,3.23188,1834.2,1834.1,1.4037]
[1743449835490,5.3492,1834.2,1833.9,0.7319]
[1743449835697,1.09059,1834.0,1833.9,1.3856]
[1743449835893,1.09059,1834.0,1833.9,1.37078354]
[1743449836103,1.09055,1834.1,1833.9,1.37078354]
[1743449836402,1.09055,1834.1,1833.9,2.46139354]
[1743449836612,1.09049,1834.2,1834.0,0.718]
[1743449836900,1.09049,1834.2,1834.1,0.7305]
[1743449838597,1.09054,1834.1,1834.0,3.2078]
[1743449838802,1.09059,1834.0,1833.9,0.7111]
[1743449839103,1.09059,1834.0,1833.9,0.69628354]
[1743449839611,1.09059,1834.0,1833.9,2.12388354]
[1743449840399,1.09059,1834.0,1833.9,1.4276]
[1743449842504,1.09059,1834.0,1833.9,4.6354]
[1743449842801,1.09059,1834.0,1833.9,1.4276]
[1743449843506,2.7262,1834.2,1833.9,5.35747406]
[1743449843712,1.09059,1834.0,1833.9,5.72603]
[1743449843909,1.09059,1834.0,1833.9,4.28361354]
[1743449844205,1.09059,1834.0,1833.9,3.9150344]
[1743449844406,1.09065,1833.9,1833.8,5.0493]
[1743449844706,1.09065,1833.9,1833.8,5.77143777]
[1743449844910,1.09065,1833.9,1833.8,5.0493]
[1743449845208,1.09065,1833.9,1833.8,5.77144507]
[1743449845408,1.09065,1833.9,1833.8,5.77146973]
[1743449845705,1.09065,1834.0,1833.9,1.09062]
[1743449845905,1.09062,1834.0,1833.9,1.81270617]
[1743449846107,1.09062,1834.0,1833.9,0.72212617]
[1743449846300,1.09065,1833.9,1833.8,9.34778]
[1743449846606,1.09065,1833.9,1833.8,10.06997063]
[1743449847312,1.09062,1834.1,1834.0,1.09056]
[1743449847515,1.07580354,1834.1,1834.0,4.29836]
[1743449847804,1.09052,1834.2,1834.1,1.09048]
[1743449848101,1.09048,1834.2,1834.1,0.7423]
[1743449848503,1.09048,1834.2,1834.1,1.83284]
[1743449848702,1.09048,1834.2,1834.1,0.7423]
[1743449848899,1.09048,1834.2,1834.1,1.83284]
[1743449849300,1.09048,1834.2,1834.1,2.55528199]
[1743449849506,1.09048,1834.2,1834.1,1.83284]
[1743449849808,1.09047,1834.3,1834.2,1.09046]
[1743449850002,1.09047,1834.3,1834.2,5.03586]
[1743449850406,1.09047,1834.3,1834.2,5.75827299]
[1743449850607,1.09047,1834.3,1834.2,3.9454]
[1743449850905,1.09047,1834.3,1834.2,5.03588]
[1743449852908,1.09047,1834.3,1834.2,3.9454]
[1743449853102,1.09047,1834.3,1834.2,5.03588]
[1743449853301,1.09047,1834.3,1834.2,0.7376]
[1743449853503,1.09048,1834.2,1834.1,0.7423]
[1743449853806,4.73543,1834.4,1834.3,1.09038]
[1743449854204,4.73536,1834.4,1834.3,1.09038]
[1743449854404,1.09036,1834.4,1834.3,1.09038]
[1743449857308,1.0985106,1834.5,1834.4,1.09036]
[1743449857712,1.0985106,1834.5,1834.4,4.29816]
[1743449857908,0.0081606,1834.5,1834.4,4.29816]
[1743449858114,0.0081606,1834.5,1834.4,5.02024873]
[1743449858411,2.72499,1835.1,1834.4,6.42988873]
[1743449858611,1.09011,1834.9,1834.8,1.09009]
[1743449859515,1.09012,1834.8,1834.7,2.4713906]
[1743449859715,1.09012,1834.8,1834.7,1.0982906]
[1743449861615,1.09012,1834.8,1834.7,1.8189906]
[1743449864822,0.0081606,1835.0,1834.9,1.09006]
[1743449865023,0.0081606,1835.0,1834.9,4.29786]
[1743449865224,1.0981606,1835.0,1834.9,4.29786]
[1743449867334,0.0081606,1835.0,1834.9,4.29786]
[1743449870937,1.0981606,1835.0,1834.9,4.29786]
[1743449871333,0.0081606,1835.0,1834.9,4.29786]
[1743449871535,1.0981606,1835.0,1834.9,4.29786]
[1743449872033,0.0081606,1835.0,1834.9,4.29786]
[1743449873531,2.72382,1835.8,1835.2,2.72471]
[1743449873833,1.0897,1835.6,1835.5,1.08966]
[1743449875332,2.4834,1835.6,1835.5,1.08966]
[1743449876138,1.0897,1835.6,1835.5,1.08966]
[1743449877635,1.0897,1835.5,1835.4,4.29752]
[1743449878434,4.86794,1835.6,1835.2,3.2078]
[1743449878634,1.08982,1835.3,1835.2,3.9102]
[1743449878834,4.71882,1835.3,1835.2,3.2078]
[1743449879033,4.71882,1835.3,1835.2,4.29768]
[1743449879236,4.71882,1835.3,1835.2,4.6731]
[1743449879436,4.71882,1835.3,1835.2,5.76298]
[1743449879741,4.71882,1835.3,1835.2,4.6731]
[1743449879930,4.71882,1835.3,1835.2,5.76298]
[1743449880535,3.629,1835.3,1835.2,5.76298]
[1743449880736,4.71882,1835.3,1835.2,4.6731]
[1743449880940,6.18432,1835.3,1835.2,5.76298]
[1743449881446,3.629,1835.3,1835.2,5.76298]
[1743449882043,2.55525,1835.5,1835.4,1.08976]
[1743449882239,6.17925,1835.5,1835.4,4.29756]
[1743449882736,6.17925,1835.5,1835.4,5.67056]
[1743449882933,6.17925,1835.5,1835.4,1.373]
[1743449883244,1.08982,1835.3,1835.2,3.2078]
[1743449883444,1.08982,1835.3,1835.2,4.29768]
[1743449884139,2.56541,1835.4,1835.3,1.08982]
[1743449884340,2.56541,1835.4,1835.3,2.46282]
[1743449884544,2.56541,1835.4,1835.3,1.373]
[1743449884938,2.56541,1835.4,1835.3,2.46282]
[1743449885846,0.7046,1835.6,1835.5,1.0897]
[1743449886049,6.16951,1835.6,1835.5,1.0897]
[1743449886542,6.16951,1835.6,1835.5,2.4804]
[1743449889352,1.8037706,1835.7,1835.6,1.08964]
[1743449889547,6.8013706,1835.7,1835.6,5.75104]
[1743449889852,6.0953706,1835.7,1835.6,5.75104]
[1743449890449,6.0953706,1835.7,1835.6,1.4536]
[1743449890652,1.0897,1835.5,1835.4,4.29752]
[1743449890846,1.0897,1835.5,1835.4,5.75112]
[1743449891345,2.5721,1835.5,1835.4,5.75112]
[1743449891547,1.08982,1835.3,1835.2,3.9387]
[1743449891755,1.08994,1835.1,1835.0,5.01296]
[1743449892055,2.5723,1835.2,1835.1,1.08994]
[1743449892251,1.4824,1835.2,1835.1,1.08994]
[1743449892750,0.7063,1835.4,1835.3,1.08982]
[1743449892951,4.3303,1835.4,1835.3,1.08982]
[1743449893151,5.8127,1835.4,1835.3,1.08982]
[1743449893346,5.8127,1835.4,1835.3,2.54282]
[1743449893853,5.1064,1835.4,1835.3,2.54282]
[1743449894443,3.624,1835.4,1835.3,2.54282]
[1743449894647,4.71376,1835.4,1835.3,2.54282]
[1743449897255,3.624,1835.4,1835.3,2.54282]
[1743449897457,0.0081606,1835.7,1835.3,2.1748391]
[1743449897753,1.08964,1835.6,1835.5,1.0897]
[1743449897951,1.4093606,1835.7,1835.6,4.29744]
[1743449898153,5.0323606,1835.7,1835.6,1.08964]
[1743449898353,6.1219906,1835.7,1835.6,1.3665]
[1743449899146,1.08964,1835.6,1835.5,1.08965]
[1743449899353,2.49084,1835.6,1835.5,1.08965]
[1743449899554,2.49084,1835.6,1835.5,2.45615]
[1743449900254,0.0081606,1835.7,1835.6,1.08964]
[1743449900461,0.0081606,1835.7,1835.6,5.70237653]
[1743449901956,1.0977406,1835.7,1835.6,5.70237653]
[1743449902259,0.0081606,1835.7,1835.6,5.70229746]
[1743449902765,0.0081606,1835.7,1835.6,5.70225489]
[1743449903270,1.0977406,1835.7,1835.6,5.70225489]
[1743449903458,0.0081606,1835.7,1835.6,5.70225489]
[1743449904360,0.0081606,1835.7,1835.6,5.70206562]
[1743449904759,1.0977406,1835.7,1835.6,5.70206562]
[1743449905063,2.5689406,1835.7,1835.6,1.77264]
[1743449905259,2.5689406,1835.7,1835.6,4.98044]
[1743449905455,2.5689406,1835.7,1835.6,1.77264]
[1743449905964,2.5689406,1835.7,1835.6,4.98044]
[1743449906664,2.5689406,1835.7,1835.6,3.2078]
[1743449906955,1.08964,1835.6,1835.5,2.4562]
[1743449907160,2.45224,1835.6,1835.5,2.4562]
[1743449908865,0.0081606,1835.7,1835.6,1.08964]
[1743449909062,0.0081606,1835.7,1835.6,5.66044]
[1743449909265,1.0977406,1835.7,1835.6,2.45264]
[1743449909665,2.4579406,1835.7,1835.6,2.45264]
[1743449910359,0.0081606,1835.7,1835.6,6.38975587]
[1743449910569,0.0081606,1835.7,1835.6,5.66044]
[1743449910764,0.0081606,1835.7,1835.6,6.38972946]
[1743449910765,4.7197406,1835.7,1835.6,6.38972946]
[1743449911067,3.6301606,1835.7,1835.6,6.38972946]
[1743449911270,4.7197406,1835.7,1835.6,6.38972946]
[1743449911467,3.6301606,1835.7,1835.6,6.38972946]
[1743449912273,4.7197406,1835.7,1835.6,6.38972946]
[1743449912465,3.6301606,1835.7,1835.6,6.38972946]
[1743449913770,4.7197406,1835.7,1835.6,3.18192946]
[1743449913968,4.7197406,1835.7,1835.6,3.18195297]
[1743449914368,4.7197406,1835.7,1835.6,6.38975297]
[1743449914670,4.7197406,1835.7,1835.6,3.18195297]
[1743449915170,4.7197406,1835.7,1835.6,6.38975297]
[1743449915469,3.6301606,1835.7,1835.6,6.38975297]
[1743449915971,0.0081606,1835.7,1835.6,6.38975297]
[1743449918066,0.0081606,1835.7,1835.6,6.38960549]
[1743449918469,0.0081606,1835.7,1835.6,6.38949377]
[1743449918966,2.58,1836.2,1836.1,1.08935]
[1743449919161,8.65281,1836.7,1836.2,2.7232]
[1743449919162,57.65266,1836.6,1836.2,2.7232]
[1743449919368,1.08922,1836.4,1836.3,1.08917]
[1743449919674,1.08922,1836.4,1836.3,3.29767]
[1743449919975,2.57992,1836.4,1836.3,3.29767]
[1743449920166,4.7193106,1836.5,1836.4,1.08917]
[1743449920366,6.2100106,1836.5,1836.4,2.54687]
[1743449922471,6.2100106,1836.5,1836.4,1.4577]
[1743449923066,1.08917,1836.4,1836.3,1.08922]
[1743449923273,2.53697,1836.4,1836.3,2.46592]
[1743449923770,2.53697,1836.4,1836.3,1.3767]
[1743449923971,2.53697,1836.4,1836.3,2.46593]
[1743449924475,2.53697,1836.4,1836.3,1.3767]
[1743449924677,1.08923,1836.3,1836.2,0.0081606]
[1743449924977,3.25933,1836.3,1836.2,0.0081606]
[1743449926279,3.25933,1836.3,1836.2,1.0974506]
[1743449926481,0.0081606,1836.5,1836.4,1.08917]
[1743449926681,4.7182706,1836.5,1836.4,1.08917]
[1743449926881,1.08917,1836.4,1836.3,2.4967]
[1743449927177,1.08917,1836.4,1836.3,1.4075]
[1743449927780,2.46807,1836.4,1836.3,3.90603]
[1743449928177,2.46807,1836.4,1836.3,2.8168]
[1743449928376,2.46807,1836.4,1836.3,1.4093]
[1743449928976,1.08923,1836.3,1836.2,0.0081606]
[1743449929176,3.21303,1836.3,1836.2,0.0081606]
[1743449930675,1.08949,1835.9,1835.7,3.64182125]
[1743449930870,1.08949,1835.9,1835.8,2.56047648]
[1743449930871,4.71049,1835.9,1835.8,2.56047648]
[1743449931769,3.621,1835.9,1835.8,2.56047648]
[1743449931969,3.621,1835.9,1835.8,3.98087648]
[1743449932882,1.08941,1836.0,1835.9,1.08947]
[1743449933080,1.08941,1836.0,1835.9,5.71767]
[1743449933475,6.0963,1836.1,1836.0,1.08941]
[1743449933680,6.0963,1836.1,1836.0,3.19981]
[1743449933984,6.0963,1836.1,1836.0,2.1104]
[1743449934184,6.0963,1836.1,1836.0,1.4204]
[1743449934994,4.7104,1836.1,1836.0,2.50981]
[1743449936588,6.1493,1836.1,1836.0,2.50981]
[1743449937185,6.1493,1836.1,1836.0,1.4204]
[1743449937684,5.0599,1836.1,1835.9,3.2078]
[1743449937879,3.18131,1836.0,1835.9,3.2078]
[1743449938082,3.18131,1836.0,1835.9,4.6646]
[1743449938482,3.18131,1836.0,1835.9,5.75407]
[1743449938683,3.18131,1836.0,1835.9,4.6646]
[1743449938883,2.0919,1836.0,1835.9,5.75407]
[1743449939092,3.18131,1836.0,1835.9,5.75407]
[1743449940689,3.18131,1836.0,1835.9,2.54627]
[1743449940885,2.47261,1836.0,1835.9,2.54627]
[1743449942987,2.47261,1836.0,1835.9,1.4568]
[1743449943190,1.08953,1835.8,1835.7,5.0155906]
[1743449943390,4.71053,1835.8,1835.7,3.9260606]
[1743449943590,4.71053,1835.8,1835.7,0.0081606]
[1743449943787,5.42103,1835.8,1835.7,0.0081606]
[1743449944385,9.41433,1835.8,1835.7,0.0081606]
[1743449944691,1.08994,1835.1,1835.0,5.04925]
[1743449944996,4.71094,1835.1,1835.0,6.48305]
[1743449945197,4.71094,1835.1,1835.0,5.3931]
[1743449945793,4.71094,1835.1,1835.0,6.4831]
[1743449946301,4.71094,1835.1,1835.0,5.3931]
[1743449947595,4.71094,1835.1,1835.0,6.4831]
[1743449947784,4.71094,1835.1,1835.0,5.3931]
[1743449948190,6.13544,1835.1,1835.0,5.3931]
[1743449948993,6.13544,1835.1,1835.0,1.4338]
[1743449949193,1.09,1835.0,1834.9,0.0081606]
[1743449949388,3.2324,1835.0,1834.9,0.0081606]
[1743449952691,3.622,1835.0,1834.9,2.5910206]
[1743449952898,3.622,1835.0,1834.9,3.2787206]
[1743449953095,4.7143606,1835.2,1834.9,2.1886606]
[1743449953296,4.71194,1835.1,1835.0,2.5828]
[1743449953488,4.71194,1835.1,1835.0,1.4928]
[1743449953693,6.21034,1835.1,1835.0,1.4928]
[1743449954290,6.21034,1835.1,1835.0,2.5828]
[1743449954599,3.622,1835.1,1835.0,2.5828]
[1743449954799,4.71194,1835.1,1835.0,2.5828]
[1743449956995,4.71194,1835.1,1835.0,5.7906]
[1743449957397,4.71194,1835.1,1835.0,2.5828]
[1743449959095,0.0081606,1835.2,1835.1,1.08994]
[1743449959299,3.6301606,1835.2,1835.1,3.31474]
[1743449959499,0.0081606,1835.2,1835.1,3.31474]
[1743449959694,3.622,1835.4,1835.3,1.08982]
[1743449959897,3.622,1835.4,1835.3,4.29762]
[1743449960607,4.71176,1835.4,1835.3,4.29762]
[1743449960807,3.622,1835.4,1835.3,4.29762]
[1743449962708,3.6301606,1835.5,1835.4,1.08976]
[1743449963011,3.6301606,1835.5,1835.4,2.53896]
[1743449965810,0.0081606,1835.5,1835.4,2.53896]
[1743449966012,1.4551,1836.0,1835.9,1.08947]
[1743449966311,3.622,1836.0,1835.9,1.08947]
[1743449966512,3.622,1836.0,1835.9,4.29727]
[1743449966713,1.08939,1836.1,1836.0,1.08941]
[1743449966912,4.71139,1836.1,1836.0,2.46001]
[1743449967411,4.71139,1836.1,1836.0,1.3706]
[1743449968009,4.71139,1836.1,1835.9,4.3054006]
[1743449968010,1.08941,1836.0,1835.9,3.2159606]
[1743449968208,2.55741,1836.0,1835.9,3.2159606]
[1743449968611,2.55741,1836.0,1835.9,4.6096606]
[1743449969410,2.55741,1836.0,1835.9,5.6991306]
[1743449970105,2.55741,1836.0,1835.9,4.6096606]
[1743449970500,2.55741,1836.0,1835.9,5.6991306]
[1743449971313,2.55741,1836.0,1835.9,4.6096606]
[1743449972112,2.55741,1836.0,1835.9,5.6991306]
[1743449972313,2.55741,1836.0,1835.9,4.6096606]
[1743449972616,2.55741,1836.0,1835.9,5.6991306]
[1743449973501,2.55741,1836.0,1835.9,4.6096606]
[1743449974213,2.55741,1836.0,1835.9,5.6991306]
[1743449974406,2.55741,1836.0,1835.9,4.6096606]
[1743449976522,2.55741,1836.0,1835.9,5.6991306]
[1743449977214,2.55741,1836.0,1835.9,2.4913306]
[1743449978422,2.55741,1836.0,1835.9,1.4018606]
[1743449982611,2.55741,1836.0,1835.9,0.0081606]
[1743449984718,5.089,1836.0,1835.9,1.0976306]
[1743449984911,6.17841,1836.0,1835.9,1.0976306]
[1743449985220,6.17841,1836.0,1835.9,0.0081606]
[1743449987819,5.44747,1835.9,1835.4,3.2078]
[1743449988016,1.0897,1835.5,1835.4,3.2078]
[1743449988216,4.7107,1835.5,1835.4,3.2078]
[1743449988825,5.4423,1835.5,1835.4,3.2078]
[1743449989716,5.4423,1835.5,1835.4,4.29756]
[1743449990819,5.4423,1835.5,1835.4,3.2078]
[1743449991021,5.4423,1835.5,1835.4,4.29756]
[1743449991618,1.08976,1835.4,1835.3,1.4517606]
[1743449991812,2.52716,1835.4,1835.3,3.27122539]
[1743449992216,2.52716,1835.4,1835.3,5.7493806]
[1743449992617,4.71075,1835.5,1835.4,1.08976]
[1743449992820,1.08966,1835.6,1835.5,1.08964]
[1743449993023,4.71066,1835.6,1835.5,1.08964]
[1743449993726,1.08976,1835.5,1835.4,1.08971]
[1743449993927,1.08976,1835.5,1835.4,1.81915779]
[1743449995121,1.08976,1835.5,1835.4,1.08971]
[1743449995823,1.08976,1835.4,1835.3,5.7493006]
[1743449996126,1.08976,1835.4,1835.3,5.38894887]
[1743449996323,1.08976,1835.4,1835.3,1.4517606]
[1743449996526,1.08976,1835.4,1835.3,2.5415806]
[1743449999326,1.08967,1835.7,1835.6,1.08961]
[1743449999534,1.0897,1835.6,1835.5,1.08966]
[1743449999722,1.0897,1835.6,1835.5,2.58076]
[1743450000526,4.7107,1835.6,1835.5,2.58076]
[1743450000726,3.2159606,1836.2,1835.5,4.6989]
[1743450001029,1.08958,1835.7,1835.6,3.25712]
[1743450001229,4.71058,1835.7,1835.6,3.25712]
[1743450003032,3.621,1835.7,1835.6,3.25712]
[1743450003228,4.71058,1835.7,1835.6,3.25712]
[1743450007332,4.71058,1835.7,1835.6,2.1675]
[1743450007531,4.71058,1835.7,1835.6,1.4289]
[1743450007732,5.44468,1835.7,1835.6,1.4289]
[1743450007929,6.85908,1835.7,1835.6,1.4289]
[1743450008131,1.08964,1835.6,1835.5,3.2078]
[1743450008337,1.4144,1835.6,1835.5,1.0897]
[1743450008538,1.08962,1835.7,1835.6,1.08959]
[1743450008741,4.70958,1835.7,1835.6,1.83124]
[1743450008940,4.70958,1835.7,1835.6,3.24664]
[1743450009643,4.70958,1835.7,1835.6,3.97617309]
[1743450009840,4.70958,1835.7,1835.6,3.24664]
[1743450010145,4.70958,1835.7,1835.6,2.157]
[1743450010348,4.70958,1835.7,1835.6,1.4154]
[1743450010544,6.10768,1835.7,1835.6,1.4154]
[1743450010850,1.08976,1835.5,1835.4,1.3927]
[1743450011244,1.08976,1835.5,1835.4,3.21217519]
[1743450011438,1.08969,1835.6,1835.5,1.0897]
[1743450011647,1.0896,1835.7,1835.5,3.21216251]
[1743450011845,2.72373,1835.9,1835.8,1.08947]
[1743450011846,1.08953,1835.9,1835.8,1.08947]
[1743450012150,4.70953,1835.9,1835.8,1.08947]
[1743450012549,1.08953,1835.8,1835.7,2.0851]
[1743450012846,1.08953,1835.8,1835.7,0.6924]
[1743450013246,1.08953,1835.8,1835.7,1.78198]
[1743450013749,4.70953,1835.8,1835.7,2.51179685]
[1743450014851,4.70953,1835.8,1835.7,1.78198]
[1743450015149,4.70953,1835.8,1835.7,2.51171494]
[1743450015350,4.70953,1835.8,1835.7,0.6924]
[1743450015551,4.70953,1835.8,1835.7,1.78198]
[1743450015843,4.70953,1835.8,1835.7,2.51170523]
[1743450016249,4.70953,1835.8,1835.7,2.51166558]
[1743450016443,4.70953,1835.8,1835.7,1.78198]
[1743450017042,4.70953,1835.8,1835.7,2.51170708]
[1743450017748,4.70953,1835.8,1835.7,2.51166933]
[1743450018147,4.70953,1835.8,1835.7,1.78198]
[1743450018452,4.70953,1835.8,1835.7,2.5116225]
[1743450018647,2.53523,1835.9,1835.8,1.08953]
[1743450018838,4.29718,1836.1,1836.0,1.08941]
[1743450019046,1.08947,1836.0,1835.9,1.08942]
[1743450019944,1.08943,1836.1,1836.0,1.08937]
[1743450020145,1.0974506,1836.2,1836.1,1.08935]
[1743450020345,1.08941,1836.1,1836.0,1.08936]
[1743450021753,1.4788606,1836.2,1836.1,1.08935]
[1743450021951,0.0081606,1836.2,1836.1,4.29715]
[1743450022153,1.08909,1836.6,1836.5,1.08905]
[1743450022350,4.70908,1836.6,1836.5,1.08905]
[1743450022758,3.62,1836.6,1836.5,1.08905]
[1743450022959,4.70905,1836.6,1836.5,1.08905]
[1743450023957,1.08911,1836.5,1836.4,1.0972906]
[1743450026652,1.08911,1836.5,1836.4,0.0081606]
[1743450026958,2.45381,1836.5,1836.4,0.0081606]
[1743450027159,3.17631,1836.5,1836.4,0.0081606]
[1743450027654,1.08935,1836.1,1836.0,0.6767]
[1743450027856,4.70835,1836.1,1836.0,0.6767]
[1743450028245,4.70835,1836.1,1836.0,1.76611]
[1743450028451,1.08941,1836.0,1835.9,3.2078]
[1743450028655,2.48751,1836.0,1835.9,4.29727]
[1743450029054,1.3981,1836.0,1835.9,5.71697]
[1743450029359,3.619,1836.1,1836.0,1.08941]
[1743450029560,3.619,1836.1,1836.0,2.50911]
[1743450030259,1.08928,1836.3,1836.0,1.4197]
[1743450030459,4.70835,1836.1,1836.0,2.50911]
[1743450030760,3.619,1836.1,1836.0,2.50911]
[1743450031662,4.70835,1836.1,1836.0,2.50911]
[1743450033360,3.619,1836.1,1836.0,2.50911]
[1743450033550,4.70835,1836.1,1836.0,2.50911]
[1743450034861,3.619,1836.1,1836.0,2.50911]
[1743450035059,4.70835,1836.1,1836.0,2.50911]
[1743450036460,3.619,1836.1,1836.0,2.50911]
[1743450037162,4.70835,1836.1,1836.0,2.50911]
[1743450039064,4.70835,1836.1,1836.0,3.24541]
[1743450039954,3.619,1836.1,1836.0,3.24541]
[1743450041163,3.619,1836.1,1836.0,3.97372132]
[1743450041359,4.70735,1836.1,1836.0,2.50911]
[1743450042163,4.70735,1836.1,1836.0,3.23755522]
[1743450042466,3.618,1836.1,1836.0,3.23755522]
[1743450042960,3.618,1836.1,1836.0,2.50911]
[1743450043166,4.70735,1836.1,1836.0,2.50911]
[1743450043467,6.12835,1836.1,1836.0,2.50911]
[1743450045572,6.83845,1836.1,1836.0,2.50911]
[1743450045860,1.08947,1835.9,1835.8,0.0081606]
[1743450046567,2.55407,1835.9,1835.8,0.0081606]
[1743450047263,1.08976,1835.5,1835.4,1.08973]
[1743450047470,1.08976,1835.5,1835.4,2.53913]
[1743450047471,4.70776,1835.5,1835.4,2.53913]
[1743450048266,6.17236,1835.5,1835.4,2.53913]
[1743450048472,1.08976,1835.4,1835.3,4.74439994]
[1743450048669,1.4646,1835.4,1835.3,4.3057806]
[1743450048969,1.4646,1835.4,1835.3,5.03446482]
[1743450049168,1.4646,1835.4,1835.3,4.3057806]
[1743450049370,2.55436,1835.4,1835.3,4.3057806]
[1743450049569,2.55436,1835.4,1835.3,5.0430806]
[1743450049772,2.55436,1835.4,1835.3,6.3993806]
[1743450051373,2.55436,1835.4,1835.3,3.1915806]
[1743450053369,2.55436,1835.4,1835.3,0.0081606]
[1743450053771,5.76216,1835.4,1835.3,0.0081606]
[1743450054665,1.09012,1834.8,1834.7,3.64040956]
[1743450054864,4.70912,1834.8,1834.7,4.73055956]
[1743450055466,4.70912,1834.8,1834.7,1.52278956]
[1743450055673,4.70912,1834.8,1834.7,1.09018]
[1743450055873,4.70912,1834.8,1834.7,2.52648]
[1743450056770,4.70912,1834.8,1834.7,5.73428]
[1743450058776,6.15982,1834.8,1834.7,5.73428]
[1743450058975,3.619,1834.8,1834.7,5.73428]